bitfinex-derivatives/quotes_SOLF0:USTF0_20251117
["timestamp","ask_amount","ask_price","bid_price","bid_amount"]
[1763412716545,3.5,130.41,130.27,41.78]
[1763412716840,0.05888911,130.35,130.33,0.05633263]
[1763412717039,3.55638897,130.35,130.33,0.05715049]
[1763412717746,3.55638897,130.35,130.23,21.52587483]
[1763412718045,3.5,130.35,130.23,21.52587483]
[1763412718247,3.5,130.35,130.19,21.52587483]
[1763412718743,0.05037074,130.28,130.26,0.05704459]
[1763412719044,0.05886045,130.28,130.26,0.05240594]
[1763412719247,3.5,130.35,130.26,0.05240594]
[1763412719442,3.5,130.35,130.22,21.52587483]
[1763412720348,0.05470767,130.3,130.27,0.05523151]
[1763412720546,3.5,130.35,130.27,0.05706455]
[1763412720748,197.52587483,130.48,130.28,6.9155]
[1763412720749,3.5,130.39,130.28,6.9155]
[1763412720940,3.5,130.39,130.22,21.52587483]
[1763412721139,3.5,130.39,130.25,21.52587483]
[1763412721340,3.5,130.39,130.18,62.0]
[1763412721341,3.5,130.45,130.31,21.52587483]
[1763412721540,0.04894271,130.39,130.37,0.05503062]
[1763412721741,3.5,130.45,130.34,21.52587483]
[1763412721947,3.5,130.45,130.2,28.35582804]
[1763412721948,3.5500187,130.39,130.37,0.0566234]
[1763412722149,3.54835404,130.39,130.37,0.05028665]
[1763412722354,0.04835404,130.39,130.37,0.05028665]
[1763412723651,3.51835404,130.39,130.37,0.05028665]
[1763412724148,0.04835404,130.39,130.37,0.05028665]
[1763412724555,3.51835404,130.39,130.37,0.05028665]
[1763412725152,0.04835404,130.39,130.37,0.05028665]
[1763412725848,3.51835404,130.39,130.37,0.05028665]
[1763412726048,0.04835404,130.39,130.37,0.05028665]
[1763412726851,21.52587483,130.62,130.38,1.54]
[1763412726852,3.47,130.47,130.38,1.54]
[1763412727155,3.47,130.47,130.36,21.52587483]
[1763412727650,3.47,130.55,130.37,62.0]
[1763412727843,0.05269254,130.47,130.45,0.05623161]
[1763412728049,3.52454686,130.47,130.45,0.05390828]
[1763412728644,3.47,130.46,130.32,21.52587483]
[1763412729646,44.58587483,130.52,130.32,21.52587483]
[1763412729647,3.52255246,130.4,130.38,0.05371356]
[1763412729958,3.52312271,130.4,130.27,21.52587483]
[1763412730156,3.47,130.4,130.27,21.52587483]
[1763412730653,3.47,130.4,130.3,6.9144]
[1763412731058,3.47,130.4,130.34,0.05631267]
[1763412731059,0.05133236,130.36,130.34,0.05631267]
[1763412731352,0.05133236,130.36,130.23,21.52587483]
[1763412731353,3.52133236,130.36,130.23,21.52587483]
[1763412731540,3.47,130.36,130.23,21.52587483]
[1763412732550,0.05219368,130.31,130.28,0.05233839]
[1763412732752,0.05219368,130.31,130.28,0.05354128]
[1763412733258,3.52219368,130.31,130.28,0.05354128]
[1763412735555,0.05219368,130.31,130.28,0.05354128]
[1763412736055,3.52219368,130.31,130.28,0.05354128]
[1763412737563,3.47,130.29,130.15,137.03842649]
[1763412737768,3.47,130.29,130.15,130.11602649]
[1763412737965,3.47,130.29,130.15,137.03842649]
[1763412738261,3.47,130.29,130.15,130.11602649]
[1763412738462,0.05768888,130.23,130.21,0.054887]
[1763412738662,0.05423709,130.23,130.21,0.04885561]
[1763412739066,3.26,130.33,130.21,0.04885561]
[1763412739367,3.26,130.33,130.19,38.17602649]
[1763412739961,3.26,130.33,130.23,38.17602649]
[1763412740166,3.26,130.37,130.23,38.17602649]
[1763412741164,0.05245944,130.31,130.29,0.05027422]
[1763412741352,3.26,130.37,130.29,0.05027422]
[1763412741757,3.26,130.37,130.27,45.09182649]
[1763412742359,3.26,130.37,130.25,6.9171]
[1763412742768,0.05496733,130.32,130.3,0.05428252]
[1763412742966,0.05317091,130.32,130.3,0.05428252]
[1763412743462,3.26,130.41,130.3,1.59428252]
[1763412743657,3.26,130.41,130.27,38.17602649]
[1763412744263,3.26,130.41,130.28,62.0]
[1763412744566,0.04933661,130.36,130.33,0.05431437]
[1763412744865,0.04933661,130.36,130.33,0.05314732]
[1763412745070,3.26,130.45,130.33,6.96584732]
[1763412745362,3.26,130.49,130.32,38.17602649]
[1763412745564,3.26,130.49,130.39,6.9096]
[1763412745965,3.26,130.49,130.36,38.17602649]
[1763412746169,0.05367356,130.44,130.41,0.05258346]
[1763412746362,3.26,130.53,130.4,38.17602649]
[1763412747569,0.05869538,130.48,130.45,0.05736051]
[1763412747871,0.05869538,130.48,130.45,0.04998752]
[1763412750166,3.26,130.6,130.45,1.58998752]
[1763412750370,3.26,130.6,130.47,38.17602649]
[1763412750565,3.26,130.6,130.42,6.82995321]
[1763412750768,3.26,130.6,130.45,38.17602649]
[1763412751274,0.05110984,130.54,130.51,0.0576635]
[1763412751466,3.26,130.6,130.44,38.17602649]
[1763412751671,0.0482374,130.54,130.51,0.05552122]
[1763412751860,3.26,130.6,130.48,38.17602649]
[1763412752066,0.04871132,130.54,130.51,0.05380573]
[1763412752268,0.05445286,130.54,130.51,0.05205196]
[1763412752670,3.27445286,130.54,130.51,0.05205196]
[1763412752970,3.22,130.52,130.4,38.17602649]
[1763412753175,3.22,130.52,130.36,45.08752649]
[1763412753377,3.22,130.52,130.36,38.17602649]
[1763412753767,0.05520997,130.45,130.43,0.05101849]
[1763412754076,0.05222303,130.45,130.43,0.0567665]
[1763412755286,3.27222303,130.45,130.43,0.0567665]
[1763412755572,4.81222303,130.45,130.33,41.78]
[1763412755774,3.22,130.44,130.33,41.78]
[1763412756569,0.05008906,130.4,130.37,0.0500163]
[1763412756776,3.27008906,130.4,130.37,0.0500163]
[1763412757371,0.05008906,130.4,130.37,0.0500163]
[1763412758576,3.27008906,130.4,130.37,0.0500163]
[1763412760276,3.27008906,130.4,130.25,137.19186995]
[1763412760474,3.22,130.4,130.25,92.12]
[1763412761079,3.22,130.4,130.26,6.9165]
[1763412761481,0.05783565,130.34,130.32,0.04996087]
[1763412761682,0.05783565,130.34,130.32,0.0509016]
[1763412761683,3.27414509,130.34,130.32,0.0509016]
[1763412762384,3.27414509,130.34,130.2,6.95833281]
[1763412762385,3.27414509,130.34,130.2,38.11353714]
[1763412762585,3.22,130.38,130.24,38.11353714]
[1763412762784,3.22,130.38,130.25,6.9171]
[1763412763289,0.05254248,130.33,130.3,0.0532365]
[1763412763486,0.05254248,130.33,130.3,0.05736587]
[1763412765086,3.22,130.42,130.3,0.05736587]
[1763412765287,3.22,130.42,130.28,38.11353714]
[1763412766090,23.06,130.49,130.28,38.11353714]
[1763412766091,3.27667166,130.36,130.34,0.04918603]
[1763412766296,3.27083849,130.36,130.34,0.05077374]
[1763412770192,3.27083849,130.36,130.24,38.11353714]
[1763412770389,3.22,130.36,130.24,38.11353714]
[1763412770789,3.22,130.36,130.24,45.03113714]
[1763412771192,0.05741961,130.31,130.29,0.05307905]
[1763412771487,0.05833838,130.31,130.29,0.05307905]
[1763412774591,3.27833838,130.31,130.29,0.05307905]
[1763412775890,0.05833838,130.31,130.29,0.05307905]
[1763412776496,3.27833838,130.31,130.29,0.05307905]
[1763412776800,0.05833838,130.31,130.29,0.05307905]
[1763412777899,3.27833838,130.31,130.29,0.05307905]
[1763412780293,0.05833838,130.31,130.29,0.05307905]
[1763412780994,3.27833838,130.31,130.29,0.05307905]
[1763412781296,3.27833838,130.31,130.29,0.00307905]
[1763412781495,3.22,130.29,130.19,13.54653032]
[1763412781695,3.22,130.29,130.16,55.28653032]
[1763412782496,3.22,130.23,130.21,0.04960096]
[1763412782700,3.22,130.23,130.14,13.54653032]
[1763412783000,0.05570557,130.2,130.17,0.052085]
[1763412783201,3.58570557,130.2,130.17,0.052085]
[1763412784202,0.05570557,130.2,130.17,0.052085]
[1763412785400,13.54653032,130.31,130.17,0.052085]
[1763412785401,3.53,130.27,130.18,1.54]
[1763412785593,3.53,130.27,130.2,20.46633032]
[1763412785795,3.53,130.27,130.2,13.54653032]
[1763412786392,3.53,130.27,130.12,9.40985027]
[1763412786393,3.53,130.24,130.22,0.05684201]
[1763412786597,0.05245074,130.24,130.22,0.0547444]
[1763412787706,3.58245074,130.24,130.22,0.0547444]
[1763412788100,0.05245074,130.24,130.22,0.0547444]
[1763412788698,3.53,130.32,130.22,1.5947444]
[1763412788900,3.53,130.32,130.21,13.54653032]
[1763412789295,3.53,130.32,130.24,13.54653032]
[1763412789694,0.05576295,130.29,130.27,0.05230037]
[1763412790091,3.58576295,130.29,130.27,0.05230037]
[1763412791301,3.58576295,130.29,130.16,13.54653032]
[1763412791302,3.53,130.27,130.16,13.54653032]
[1763412792005,3.53,130.27,130.19,13.54653032]
[1763412792300,3.58383063,130.24,130.22,0.05223549]
[1763412792607,0.04869599,130.24,130.22,0.05858552]
[1763412793091,3.53,130.3,130.23,15.08653032]
[1763412793294,3.53,130.3,130.23,13.54653032]
[1763412793496,22.56401441,130.36,130.23,13.54653032]
[1763412793692,3.53,130.35,130.23,13.54653032]
[1763412794096,0.04896041,130.3,130.28,0.04963267]
[1763412794297,0.05618513,130.3,130.28,0.05243599]
[1763412794493,3.58618513,130.3,130.28,0.05243599]
[1763412795705,3.53,130.28,130.16,13.54653032]
[1763412796611,3.58623051,130.23,130.21,0.05715043]
[1763412796912,3.5813289,130.23,130.21,0.05830905]
[1763412797908,0.0513289,130.23,130.21,0.05830905]
[1763412798117,29.51909892,130.36,130.22,8.65819914]
[1763412798118,3.31,130.34,130.22,8.65819914]
[1763412798802,3.31,130.34,130.23,6.9182]
[1763412799111,0.05573445,130.3,130.27,0.05506878]
[1763412799505,3.36573445,130.3,130.27,0.05506878]
[1763412799806,3.36573445,130.3,130.19,15.61653195]
[1763412800005,3.31,130.3,130.19,8.65819914]
[1763412800796,3.31,130.25,130.23,0.05337861]
[1763412801100,3.36363131,130.25,130.16,8.65819914]
[1763412801298,3.31,130.25,130.16,8.65819914]
[1763412802106,0.0549335,130.22,130.19,0.05239746]
[1763412802302,3.3649335,130.22,130.19,0.05239746]
[1763412802517,3.3649335,130.22,130.12,8.65819914]
[1763412802709,3.31,130.22,130.11,15.61653195]
[1763412802909,3.31,130.22,130.11,8.65819914]
[1763412803109,3.31,130.22,130.1,8.65819914]
[1763412803516,0.05640843,130.17,130.15,0.05758717]
[1763412803703,0.05124147,130.17,130.15,0.05758717]
[1763412803907,3.36124147,130.17,130.15,0.05758717]
[1763412804304,3.36124147,130.17,130.07,15.61653195]
[1763412804513,3.31,130.17,130.07,15.61653195]
[1763412805008,3.31,130.17,130.09,6.9258]
[1763412805202,3.31,130.17,130.1,8.65819914]
[1763412805412,0.05105934,130.14,130.12,0.04992839]
[1763412806216,3.36105934,130.14,130.12,0.04992839]
[1763412807719,3.36105934,130.14,130.04,15.61653195]
[1763412808027,3.31,130.14,130.04,8.65819914]
[1763412808924,0.05564414,130.1,130.08,0.05158107]
[1763412815926,3.31,130.22,130.09,6.9257]
[1763412816128,3.31,130.21,130.07,8.65819914]
[1763412816624,3.31,130.19,130.06,8.65819914]
[1763412816828,3.31,130.13,130.11,0.05545087]
[1763412817025,3.36232623,130.13,130.11,0.05591057]
[1763412818822,3.36232623,130.13,130.02,8.65819914]
[1763412819132,3.31,130.13,130.02,8.65819914]
[1763412819335,3.31,130.13,130.0,6.95833281]
[1763412819521,3.31,130.13,130.0,8.65819914]
[1763412819726,8.65819914,130.14,130.05,0.05635227]
[1763412819727,3.3600597,130.08,130.05,0.05635227]
[1763412819925,3.36855115,130.08,130.05,0.05427826]
[1763412822232,3.36855115,130.08,129.97,8.65819914]
[1763412822421,3.31,130.08,129.97,8.65819914]
[1763412822620,3.31,130.08,130.0,8.65819914]
[1763412823234,0.05695353,130.05,130.03,0.04924762]
[1763412825427,3.31,130.12,130.03,8.70744676]
[1763412825634,3.31,130.12,130.03,8.65819914]
[1763412826438,0.05755845,130.09,130.06,0.0513794]
[1763412826635,3.36755845,130.09,130.06,0.0513794]
[1763412830338,3.36755845,130.09,129.94,23.42826869]
[1763412830540,3.31,130.09,129.97,8.65819914]
[1763412830740,3.31,130.09,129.94,6.95833281]
[1763412830741,3.31,130.09,130.0,8.65819914]
[1763412831237,3.31,130.09,130.03,0.05765423]
[1763412831431,3.36204908,130.06,130.03,0.05765423]
[1763412831641,3.36092689,130.06,130.03,0.04882202]
[1763412833642,0.05092689,130.06,130.03,0.04882202]
[1763412834443,3.36092689,130.06,130.03,0.04882202]
[1763412835544,3.36092689,130.06,129.96,8.65819914]
[1763412835738,3.31,130.05,129.93,8.65819914]
[1763412835946,3.31,130.05,129.92,8.65819914]
[1763412836752,0.04977938,130.0,129.97,0.05260352]
[1763412837046,0.04977938,130.0,129.97,0.04985889]
[1763412837444,0.04977938,130.0,129.98,8.65819914]
[1763412837951,0.04977938,130.0,129.97,0.04985889]
[1763412838243,0.04977938,130.0,129.97,6.98195889]
[1763412838450,3.31,130.05,129.99,8.65819914]
[1763412839444,3.36818011,130.03,130.01,0.04927285]
[1763412839644,0.0517387,130.03,130.01,0.05789948]
[1763412839946,3.3617387,130.03,130.01,0.05789948]
[1763412840244,57.13521315,130.16,130.02,8.65819914]
[1763412840245,3.31,130.1,130.02,8.65819914]
[1763412841248,3.31,130.1,130.05,0.05768912]
[1763412841450,0.05539727,130.07,130.05,0.05768912]
[1763412843647,3.40539727,130.07,130.05,0.05768912]
[1763412845145,0.05539727,130.07,130.05,0.05768912]
[1763412845647,3.40539727,130.07,130.05,0.05768912]
[1763412846161,0.05539727,130.07,130.05,0.05768912]
[1763412847244,3.40539727,130.07,130.05,0.05768912]
[1763412847649,0.05539727,130.07,130.05,0.05768912]
[1763412848847,3.40539727,130.07,130.05,0.05768912]
[1763412849251,0.05539727,130.07,130.05,0.05768912]
[1763412850253,3.40539727,130.07,130.05,0.05768912]
[1763412852457,0.05539727,130.07,130.05,0.05768912]
[1763412852952,0.05539727,130.07,130.05,8.71588826]
[1763412853155,3.35,130.13,130.05,15.8202867]
[1763412853359,3.35,130.13,130.07,7.10439844]
[1763412853547,3.35,130.13,130.08,8.65819914]
[1763412854050,3.40282412,130.12,130.09,0.05609869]
[1763412854253,3.4010974,130.12,130.09,0.05027561]
[1763412858750,3.4010974,130.12,130.04,7.10948537]
[1763412858949,3.35,130.12,130.03,7.10948537]
[1763412859952,3.18,130.08,130.06,0.04841841]
[1763412860155,3.23386155,130.08,130.06,0.0558104]
[1763412860455,0.05386155,130.08,130.06,7.16529577]
[1763412860857,0.05386155,130.08,130.06,0.0558104]
[1763412861056,0.05386155,130.08,130.06,7.16529577]
[1763412861452,0.05386155,130.08,130.06,0.0558104]
[1763412861653,3.23386155,130.08,130.06,0.0558104]
[1763412864668,3.23386155,130.08,130.02,7.10948537]
[1763412864857,3.23386155,130.08,130.0,7.10948537]
[1763412865163,3.18,130.08,129.98,7.10948537]
[1763412865760,3.18,130.03,130.02,0.0549684]
[1763412865959,3.18,130.03,130.01,0.05912738]
[1763412870966,0.04998127,130.04,130.01,0.05912738]
[1763412871359,0.04998127,130.04,130.01,7.16861275]
[1763412871676,3.18,130.1,130.02,7.10948537]
[1763412872564,3.18,130.1,130.04,7.10948537]
[1763412872868,3.32,130.07,130.06,0.05261923]
[1763412873069,3.32,130.07,130.05,0.05329749]
[1763412874256,3.32,130.07,129.99,7.10948537]
[1763412874463,3.32,130.07,129.98,7.10948537]
[1763412874661,3.32,130.07,129.97,7.10948537]
[1763412875165,3.32,130.07,129.96,7.10948537]
[1763412875473,0.04865788,130.03,130.01,0.05215684]
[1763412875769,3.37482438,130.03,130.01,0.05005406]
[1763412876168,3.37482438,130.03,129.95,7.10948537]
[1763412876364,3.32,130.03,129.94,7.10948537]
[1763412876566,3.32,130.03,129.93,7.10948537]
[1763412876971,3.32,130.03,129.92,7.10948537]
[1763412877371,9.43460986,130.1,129.9,9.40985027]
[1763412877372,3.32,129.98,129.9,7.10948537]
[1763412878474,3.32,129.94,129.88,7.10948537]
[1763412878669,3.32,129.94,129.85,16.51933564]
[1763412878973,3.32,129.94,129.85,7.10948537]
[1763412879162,3.32,129.94,129.84,7.10948537]
[1763412879468,3.32,129.89,129.88,0.02200917]
[1763412879666,3.32,129.89,129.87,0.02200917]
[1763412879860,3.37821845,129.89,129.87,0.02200917]
[1763412880057,0.05821845,129.89,129.87,0.02200917]
[1763412880256,3.32,129.93,129.87,0.02200917]
[1763412881169,0.0501094,129.91,129.87,0.02200917]
[1763412881371,3.32,129.9,129.87,0.02200917]
[1763412881667,0.0501094,129.91,129.87,0.02200917]
[1763412881970,3.32,129.9,129.87,0.02200917]
[1763412883066,0.0501094,129.91,129.87,13.61009294]
[1763412883269,22.78308733,130.0,129.9,13.58808377]
[1763412883466,3.32,129.99,129.9,13.58808377]
[1763412884471,0.05016543,129.96,129.93,0.05547708]
[1763412885073,0.05016543,129.96,129.93,13.64356085]
[1763412885371,3.32,130.02,129.93,20.57776085]
[1763412885569,329.5795509,130.07,129.96,13.58808377]
[1763412885776,3.32,130.06,129.99,13.58808377]
[1763412886169,0.05494542,130.04,130.01,0.05257942]
[1763412886368,3.37494542,130.04,130.01,0.05257942]
[1763412887371,3.37494542,130.04,129.96,13.58808377]
[1763412887686,3.32,130.04,129.92,20.69756914]
[1763412888070,3.32,130.04,129.93,6.9342]
[1763412888375,0.05739419,130.0,129.97,0.04936339]
[1763412888575,3.32,130.04,129.97,0.04936339]
[1763412889577,0.05760223,130.02,129.97,0.04936339]
[1763412890472,0.05760223,130.02,129.98,13.58808377]
[1763412890666,3.32,130.08,129.98,13.58808377]
[1763412891181,3.32,130.08,129.98,20.51968377]
[1763412891380,3.32,130.08,129.97,7.10948537]
[1763412891570,13.58808377,130.17,130.01,13.64587263]
[1763412891571,0.05039794,130.04,130.01,13.64587263]
[1763412891772,0.05895191,130.04,130.01,13.64555356]
[1763412892081,3.32,130.1,130.01,13.64555356]
[1763412892284,3.32,130.1,130.01,20.51798377]
[1763412892584,3.32,130.1,130.01,13.58808377]
[1763412892977,0.05471663,130.07,130.04,0.05649775]
[1763412893381,3.37471663,130.07,130.04,0.05649775]
[1763412895387,0.05471663,130.07,130.04,0.05649775]
[1763412895585,3.32,130.17,130.04,13.64458152]
[1763412895774,3.32,130.17,130.04,13.58808377]
[1763412896182,3.32,130.17,130.04,20.51638377]
[1763412896386,3.32,130.17,130.04,13.58808377]
[1763412896779,25.62,130.18,130.04,13.58808377]
[1763412896780,3.32,130.11,130.09,0.05424869]
[1763412896975,3.37323511,130.11,130.09,0.05540505]
[1763412897582,3.37323511,130.11,130.0,7.10948537]
[1763412897583,3.37323511,130.11,130.01,13.58808377]
[1763412897887,3.32,130.11,130.01,13.58808377]
[1763412898787,0.05059874,130.07,130.05,0.05242999]
[1763412900585,3.32,130.21,130.06,1.54]
[1763412900786,3.32,130.21,130.1,13.58808377]
[1763412901091,3.32,130.24,130.13,13.58808377]
[1763412901581,3.32,130.29,130.16,13.58808377]
[1763412901784,0.05613622,130.2,130.17,0.04993662]
[1763412901982,3.32,130.27,130.16,13.58808377]
[1763412902180,23.59807435,130.31,130.14,62.0]
[1763412902181,3.3771802,130.2,130.17,0.04928797]
[1763412902380,3.32,130.24,130.14,13.58808377]
[1763412902576,13.58808377,130.3,130.07,41.38]
[1763412902577,0.05311246,130.2,130.11,13.58808377]
[1763412902886,3.39,130.27,130.14,13.64241894]
[1763412903187,3.39,130.27,130.17,13.58808377]
[1763412903580,3.39,130.27,130.2,13.58808377]
[1763412903783,3.39,130.31,130.2,13.58808377]
[1763412903980,0.05528868,130.27,130.24,0.05311047]
[1763412904185,3.39,130.31,130.24,0.05311047]
[1763412905286,3.39,130.3,130.15,13.58808377]
[1763412906387,0.05397935,130.24,130.21,0.05590977]
[1763412906594,3.39,130.28,130.18,13.58808377]
[1763412907186,0.05792117,130.24,130.22,0.05748247]
[1763412908389,3.39,130.34,130.22,0.05748247]
[1763412908595,3.39,130.34,130.2,13.58808377]
[1763412908897,3.39,130.34,130.23,13.58808377]
[1763412909296,3.39,130.34,130.15,62.0]
[1763412909297,0.05301848,130.3,130.27,0.0567859]
[1763412909483,3.39,130.37,130.26,13.58808377]
[1763412909681,0.05747273,130.29,130.26,13.58808377]
[1763412909883,3.39,130.37,130.26,13.64185837]
[1763412910190,3.39,130.41,130.32,13.58808377]
[1763412910389,3.39,130.41,130.31,13.58808377]
[1763412911080,0.05864688,130.37,130.35,0.0529401]
[1763412911278,0.0553682,130.37,130.35,0.05435273]
[1763412911593,3.4453682,130.37,130.35,0.05435273]
[1763412911779,3.4453682,130.37,130.26,13.58808377]
[1763412911780,3.39,130.36,130.26,13.58808377]
[1763412912181,23.11805126,130.47,130.26,13.58808377]
[1763412912182,3.39,130.43,130.26,13.58808377]
[1763412912387,3.39,130.43,130.23,13.58808377]
[1763412912388,3.39,130.43,130.29,13.58808377]
[1763412912591,3.39,130.43,130.32,13.58808377]
[1763412912798,0.05392853,130.39,130.36,0.05428128]
[1763412913683,3.44392853,130.39,130.36,0.05428128]
[1763412914187,0.05392853,130.39,130.36,0.05428128]
[1763412914495,3.44392853,130.39,130.36,0.05428128]
[1763412914995,0.05392853,130.39,130.36,0.05428128]
[1763412915380,3.44392853,130.39,130.36,0.05428128]
[1763412915585,3.39,130.38,130.23,13.58808377]
[1763412915782,3.39,130.38,130.26,13.58808377]
[1763412916584,13.58808377,130.44,130.29,13.58808377]
[1763412916793,0.05103371,130.38,130.35,0.05652378]
[1763412916984,3.44219528,130.38,130.35,0.0484272]
[1763412918197,3.57219528,130.38,130.35,0.0484272]
[1763412919100,0.05219528,130.38,130.35,0.0484272]
[1763412920894,3.52,130.42,130.36,8.63860868]
[1763412921103,3.52,130.45,130.36,8.63860868]
[1763412922002,0.0572954,130.42,130.39,0.05852831]
[1763412922201,3.5772954,130.42,130.39,0.05852831]
[1763412923004,3.5772954,130.42,130.32,8.63860868]
[1763412923306,3.52,130.41,130.32,8.63860868]
[1763412924100,8.63860868,130.45,130.35,0.05156048]
[1763412924101,3.57697976,130.38,130.35,0.05156048]
[1763412924295,3.5741558,130.38,130.35,0.05096395]
[1763412924895,0.0541558,130.38,130.35,0.05096395]
[1763412925097,0.0541558,130.38,130.35,8.68957263]
[1763412925303,0.0541558,130.38,130.35,10.22957263]
[1763412925605,3.52,130.46,130.35,10.22957263]
[1763412925606,3.52,130.46,130.35,8.68957263]
[1763412925798,3.52,130.49,130.41,8.63860868]
[1763412926807,0.05880865,130.46,130.44,0.05583666]
[1763412927703,3.52,130.53,130.44,0.05583666]
[1763412928004,3.52,130.53,130.41,8.63860868]
[1763412928810,0.04928069,130.48,130.46,0.05557592]
[1763412929109,0.04932473,130.48,130.46,0.05557592]
[1763412929502,3.56932473,130.48,130.46,0.05557592]
[1763412929701,3.56932473,130.48,130.38,8.63860868]
[1763412929902,3.52,130.48,130.38,8.63860868]
[1763412930510,3.52,130.48,130.38,15.54890868]
[1763412930704,0.05222189,130.44,130.38,15.54890868]
[1763412931007,0.05222189,130.44,130.42,0.05773702]
[1763412933008,3.30222189,130.44,130.42,0.05773702]
[1763412935114,3.30222189,130.44,130.25,23.06]
[1763412935115,3.25,130.42,130.32,8.63860868]
[1763412936003,3.30002289,130.38,130.36,0.05875912]
[1763412936213,3.25,130.38,130.3,8.63860868]
[1763412936509,0.05807584,130.35,130.33,0.05186654]
[1763412936711,3.25,130.46,130.33,8.69047522]
[1763412936903,3.25,130.46,130.37,8.63860868]
[1763412937607,3.25,130.55,130.44,8.63860868]
[1763412938111,23.06,130.63,130.4,8.69702743]
[1763412938112,0.05899544,130.51,130.48,0.05883371]
[1763412938413,0.04963777,130.51,130.48,0.05212114]
[1763412939012,3.29963777,130.51,130.48,0.05212114]
[1763412941114,0.04963777,130.51,130.48,0.05212114]
[1763412942018,3.29963777,130.51,130.48,0.05212114]
[1763412942312,3.29963777,130.51,130.32,38.80809405]
[1763412942313,3.25,130.5,130.38,8.63860868]
[1763412942503,3.25,130.5,130.32,8.63860868]
[1763412942709,3.25,130.5,130.32,62.0]
[1763412943012,3.25,130.48,130.28,18.48]
[1763412943215,0.05353625,130.39,130.37,0.05888327]
[1763412943406,3.25,130.48,130.37,6.9105]
[1763412943804,3.25,130.48,130.35,8.63860868]
[1763412944400,0.04861177,130.43,130.4,0.04893608]
[1763412944604,3.30260498,130.43,130.4,0.05894074]
[1763412945005,0.05260498,130.43,130.4,0.05894074]
[1763412949510,3.30260498,130.43,130.4,0.05894074]
[1763412956327,3.30260498,130.43,130.33,15.74809405]
[1763412956527,3.25,130.42,130.32,8.63860868]
[1763412957326,23.06,130.45,130.32,8.63860868]
[1763412957327,3.25,130.45,130.34,7.10948537]
[1763412957524,0.05556309,130.41,130.37,7.10948537]
[1763412958030,0.05556309,130.41,130.38,0.0494247]
[1763412960524,0.05556309,130.41,130.38,7.15891007]
[1763412960931,0.05556309,130.41,130.38,0.0494247]
[1763412961125,0.05556309,130.41,130.38,7.15891007]
[1763412961326,0.05556309,130.41,130.38,0.0494247]
[1763412962334,0.05556309,130.41,130.38,7.15891007]
[1763412963333,0.05556309,130.41,130.38,0.0494247]
[1763412963529,0.05556309,130.41,130.38,7.15891007]
[1763412963723,0.05556309,130.41,130.39,8.63860868]
[1763412963920,3.2,130.49,130.39,8.63860868]
[1763412964124,3.2,130.49,130.39,15.74809405]
[1763412964329,3.2,130.49,130.4,7.10948537]
[1763412964842,3.2,130.49,130.39,8.63860868]
[1763412964843,0.05848057,130.46,130.43,0.0572871]
[1763412965134,3.25848057,130.46,130.43,0.0572871]
[1763412965735,0.05848057,130.46,130.43,0.0572871]
[1763412966132,0.05848057,130.46,130.43,7.16677247]
[1763412966342,3.2,130.53,130.45,8.63860868]
[1763412966646,3.2,130.53,130.45,15.74809405]
[1763412966827,3.2,130.53,130.42,7.10948537]
[1763412967338,3.2,130.53,130.32,70.63860868]
[1763412967339,0.05399324,130.49,130.46,0.05754694]
[1763412967637,0.04862321,130.49,130.46,0.05556218]
[1763412968340,0.04862321,130.49,130.46,8.69417086]
[1763412968536,3.2,130.56,130.46,15.80365623]
[1763412968740,3.2,130.56,130.47,7.10948537]
[1763412968942,3.2,130.6,130.49,8.63860868]
[1763412969737,3.2,130.55,130.46,7.10948537]
[1763412969934,3.2,130.55,130.48,15.74809405]
[1763412970134,3.2,130.55,130.48,8.63860868]
[1763412970531,1.33348661,130.63,130.48,8.63860868]
[1763412970532,3.2,130.61,130.48,15.74809405]
[1763412970726,3.2,130.61,130.51,8.63860868]
[1763412970932,3.25146996,130.56,130.53,0.05362128]
[1763412971142,3.25748931,130.56,130.53,0.0509016]
[1763412972131,0.05748931,130.56,130.53,0.0509016]
[1763412973137,3.25748931,130.56,130.53,0.0509016]
[1763412974240,0.05748931,130.56,130.53,0.0509016]
[1763412975041,3.25748931,130.56,130.53,0.0509016]
[1763412975345,0.05748931,130.56,130.53,0.0509016]
[1763412976039,2.82305531,130.59,130.53,0.0509016]
[1763412976942,0.05817638,130.57,130.53,0.0509016]
[1763412977145,0.05318306,130.56,130.54,0.05425346]